bitfinex/quotes_SOLUSD_20251013
["timestamp","ask_amount","ask_price","bid_price","bid_amount"]
[1760388311230,8.54,208.05,208.01,1.53647521]
[1760388311410,8.54,208.05,208.02,0.7]
[1760388311610,8.54,208.05,208.03,0.7]
[1760388311836,8.54,208.05,208.01,0.7]
[1760388312033,8.54,208.05,208.02,0.7]
[1760388312614,29.34,208.09,208.04,1.53647521]
[1760388312813,30.87647521,208.09,208.05,0.66]
[1760388313026,30.87647521,208.09,208.02,1.53647521]
[1760388313341,1.53647521,208.08,208.03,0.66]
[1760388313844,29.34,208.09,208.04,0.66]
[1760388314142,34.14561395,208.09,208.04,0.66]
[1760388314319,34.14561395,208.09,208.05,0.66]
[1760388314518,8.54,208.09,208.03,6.34328414]
[1760388314721,8.54,208.09,208.04,0.66]
[1760388315040,8.54,208.09,208.05,0.66]
[1760388318240,8.54,208.09,208.05,80.46]
[1760388318438,12.01165608,208.14,208.05,80.46]
[1760388318439,0.62,208.15,208.07,2.40346402]
[1760388318739,29.34,208.14,208.09,2.40346402]
[1760388318938,29.34,208.14,208.1,0.66]
[1760388319136,29.34,208.14,208.1,3.06346402]
[1760388319340,29.34,208.14,208.1,0.66]
[1760388319540,29.34,208.14,208.08,2.40346402]
[1760388319842,0.62,208.13,208.06,3.06346402]
[1760388320166,0.62,208.13,208.07,5.46607487]
[1760388320167,5.4248706,208.13,208.07,5.46607487]
[1760388320320,4.8048706,208.13,208.08,3.06346402]
[1760388320518,20.8,208.14,208.08,3.06346402]
[1760388320719,8.54,208.13,208.08,0.66]
[1760388320938,8.54,208.13,208.08,3.06346402]
[1760388321136,8.54,208.13,208.08,2.40346402]
[1760388321643,8.54,208.13,208.09,0.66]
[1760388321831,13.3447268,208.13,208.09,0.66]
[1760388322853,8.54,208.13,208.08,7.20929618]
[1760388323043,8.54,208.13,208.09,0.66]
[1760388323350,13.34470538,208.13,208.09,0.66]
[1760388324144,8.54,208.13,208.08,7.20929618]
[1760388324335,8.54,208.13,208.1,0.66]
[1760388324738,8.54,208.12,208.1,0.66]
[1760388325042,8.54,208.12,208.11,0.66]
[1760388325234,0.62,208.17,208.11,0.66]
[1760388325235,21.42,208.17,208.11,0.66]
[1760388325436,21.42,208.17,208.12,2.40346402]
[1760388325636,8.54,208.16,208.13,0.66]
[1760388325949,4.80357297,208.18,208.14,3.06346402]
[1760388326247,0.62,208.19,208.05,31.81863678]
[1760388326248,8.54,208.19,208.15,7.86763688]
[1760388326453,8.54,208.19,208.15,7.20763688]
[1760388326652,8.54,208.19,208.16,0.66]
[1760388327156,8.54,208.19,208.17,3.06346402]
[1760388327354,8.54,208.19,208.18,0.66]
[1760388327855,8.54,208.19,208.17,2.40346402]
[1760388328153,4.80261262,208.22,208.17,2.40346402]
[1760388328338,8.54,208.2,208.17,2.40346402]
[1760388328860,0.62,208.19,208.14,2.40346402]
[1760388329062,2.40346402,208.16,208.08,0.66]
[1760388329364,9.16,208.15,208.08,0.66]
[1760388329540,9.16,208.15,208.09,2.40346402]
[1760388329863,9.16,208.15,208.09,3.06346402]
[1760388330956,9.16,208.15,208.1,4.80538202]
[1760388331137,13.96432815,208.15,208.1,5.46538202]
[1760388331547,9.16,208.15,208.1,5.46538202]
[1760388334259,8.54,208.15,208.1,5.46538202]
[1760388334646,8.54,208.15,208.11,0.66]
[1760388335258,25.28838748,208.19,208.11,3.06346402]
[1760388335446,8.52,208.18,208.12,0.66]
[1760388335651,13.32355189,208.18,208.12,0.66]
[1760388335848,13.32355189,208.18,208.13,2.40346402]
[1760388336057,13.94355189,208.18,208.13,3.06346402]
[1760388337175,13.32355189,208.18,208.13,2.40346402]
[1760388337470,13.32355189,208.18,208.14,0.66]
[1760388338771,8.52,208.17,208.14,0.66]
[1760388339072,8.52,208.17,208.13,7.20814049]
[1760388339372,8.52,208.17,208.13,7.86814049]
[1760388339563,8.52,208.17,208.14,0.66]
[1760388341167,20.8,208.13,208.03,4.80699899]
[1760388341365,2.40346402,208.09,208.03,4.80699899]
[1760388341582,9.14,208.08,208.03,4.80699899]
[1760388341956,8.52,208.1,208.06,2.40346402]
[1760388342150,8.52,208.1,208.06,3.06346402]
[1760388342350,8.52,208.1,208.06,2.40346402]
[1760388342551,8.52,208.1,208.07,0.66]
[1760388343569,8.52,208.1,208.06,7.20959488]
[1760388343764,8.52,208.1,208.07,0.66]
[1760388344563,8.52,208.1,208.06,7.20959488]
[1760388344771,8.52,208.1,208.07,0.66]
[1760388345771,0.62,208.09,208.0,0.66]
[1760388345974,2.40346402,208.04,207.99,0.2]
[1760388346171,2.40346402,208.02,207.99,0.2]
[1760388346373,8.52,208.01,207.99,0.2]
[1760388346774,9.14,208.01,207.99,0.2]
[1760388346954,8.52,208.0,207.99,0.2]
[1760388348870,10.92346402,208.0,207.99,0.2]
[1760388349060,16.35115632,208.0,207.99,0.2]
[1760388349557,8.54,208.04,207.99,3.30346402]
[1760388349871,8.54,208.04,208.01,2.40346402]
[1760388350064,8.54,208.04,207.99,5.70788534]
[1760388350476,8.54,208.04,207.99,5.00788534]
[1760388350655,8.54,208.04,208.0,0.7]
[1760388351072,8.54,208.04,207.99,0.2]
[1760388351278,2.40346402,208.02,207.99,0.2]
[1760388351481,8.54,208.01,207.99,0.2]
[1760388352172,3.02346402,208.0,207.99,0.2]
[1760388353358,7.83115632,208.0,207.99,0.2]
[1760388354579,18.70763153,208.0,207.99,0.2]
[1760388355488,27.24763153,208.0,207.99,0.2]
[1760388357278,24.84416751,208.0,207.99,0.2]
[1760388357477,27.24763153,208.0,207.99,0.2]
[1760388359082,18.70763153,208.0,207.99,0.2]
[1760388359389,27.24763153,208.0,207.99,0.2]
[1760388360598,20.8,208.0,207.99,0.2]
[1760388360766,29.34,208.0,207.99,0.9]
[1760388361192,2.40346402,208.02,207.99,0.9]
[1760388361193,10.87647521,208.03,207.99,0.2]
[1760388361365,2.40346402,208.01,207.99,0.2]
[1760388361570,8.54,208.0,207.99,0.2]
[1760388361889,12.01678399,208.05,207.99,0.2]
[1760388361890,2.40346402,208.08,208.0,0.7]
[1760388362070,10.94346402,208.07,208.01,7.21092519]
[1760388362387,2.40346402,208.06,208.02,0.7]
[1760388362588,8.54,208.05,208.03,0.7]
[1760388363285,4.80590771,208.08,208.04,0.7]
[1760388363286,2.40346402,208.08,208.04,0.7]
[1760388363600,8.54,208.07,208.04,0.7]
[1760388363972,10.94346402,208.07,208.05,0.7]
[1760388364575,2.40346402,208.06,208.01,79.8]
[1760388364779,10.94346402,208.05,208.01,79.8]
[1760388364978,2.40346402,208.04,208.01,79.8]
[1760388365193,8.54,208.05,208.01,80.5]
[1760388365194,8.56,208.03,208.01,80.5]
[1760388365390,8.56,208.03,208.02,0.7]
[1760388367092,8.56,208.03,208.0,5.5076923]
[1760388367289,8.56,208.03,208.01,0.7]
[1760388367675,8.56,208.03,208.0,4.8076923]
[1760388367876,8.56,208.03,208.0,5.5076923]
[1760388368078,8.56,208.03,208.01,0.7]
[1760388368695,8.56,208.03,208.01,80.5]
[1760388369398,4.80641324,208.06,208.02,0.7]
[1760388369698,8.54,208.05,208.03,0.7]
[1760388371597,8.54,208.05,208.01,80.5]
[1760388371798,8.54,208.05,208.02,0.7]
[1760388373001,3.02346402,208.04,208.0,79.8]
[1760388373202,10.94346402,208.03,208.0,79.8]
[1760388374592,10.94346402,208.03,207.99,0.2]
[1760388374593,3.02346402,208.02,207.99,0.2]
[1760388374901,10.94346402,208.01,207.99,0.2]
[1760388375202,2.40346402,208.0,207.99,0.2]
[1760388375408,2.40346402,208.01,207.99,0.2]
[1760388375607,8.54,208.0,207.99,3.27346402]
[1760388375981,8.54,208.0,207.99,0.87]
[1760388376510,8.54,208.0,207.99,5.67791831]
[1760388376927,8.54,208.01,207.99,5.67791831]
[1760388377107,8.54,208.01,208.0,0.67]
[1760388383026,8.54,208.01,207.99,0.2]
[1760388383199,8.54,208.01,208.0,0.67]
[1760388386503,8.54,208.01,208.0,80.47]
[1760388389521,6.15636972,208.2,208.0,85.2776923]
[1760388389719,1.53909243,208.1,208.03,1.53909243]
[1760388389923,10.07909243,208.09,208.04,0.67]
[1760388390104,1.53909243,208.08,208.04,80.47]
[1760388390306,8.54,208.07,208.04,79.8]
[1760388390529,8.54,208.07,208.05,0.67]
[1760388391810,8.54,208.07,208.06,0.67]
[1760388399728,12.15295237,208.15,208.06,85.27630587]
[1760388399926,1.53909243,208.12,208.07,0.67]
[1760388400234,8.54,208.11,208.08,0.67]
[1760388400408,1.53909243,208.12,208.06,0.67]
[1760388400614,8.54,208.11,208.06,0.67]
[1760388401234,8.54,208.1,208.06,0.67]
[1760388401415,13.34544523,208.1,208.07,0.67]
[1760388401611,4.80544523,208.1,208.07,0.67]
[1760388401813,8.54,208.09,208.07,0.67]
[1760388402935,8.54,208.09,208.05,86.14557838]
[1760388402936,8.54,208.08,208.05,86.14557838]
[1760388403241,8.54,208.08,208.07,0.67]
[1760388404231,8.54,208.08,208.05,85.27648595]
[1760388404410,8.54,208.08,208.06,0.67]
[1760388404611,8.54,208.08,208.07,0.67]
[1760388407538,8.54,208.08,208.05,84.60648595]
[1760388407942,8.54,208.08,208.05,85.27648595]
[1760388408336,8.54,208.08,208.05,84.60648595]
[1760388408739,1.53909243,208.06,207.98,5.47811422]
[1760388409036,1.53909243,208.01,207.97,0.2]
[1760388409237,10.07909243,208.0,207.97,0.2]
[1760388409420,10.69909243,208.0,207.97,0.2]
[1760388409621,15.50678473,208.0,207.97,0.2]
[1760388409820,21.66315445,208.0,207.97,0.2]
[1760388410036,15.50678473,208.0,207.97,0.2]
[1760388410619,26.38325994,208.0,207.97,0.2]
[1760388411239,36.30678473,208.0,207.97,0.2]
[1760388411642,1.53909243,208.02,207.99,0.89]
[1760388411835,10.07909243,208.01,207.99,0.2]
[1760388412233,2.15909243,208.0,207.99,0.2]
[1760388413521,4.80723007,208.02,207.99,0.89]
[1760388413721,8.54,208.01,207.99,0.2]
[1760388413929,8.54,208.01,208.0,0.69]
[1760388416342,8.54,208.01,207.99,0.2]
[1760388416642,8.54,208.01,208.0,0.69]
[1760388421338,4.80678476,208.04,208.0,0.69]
[1760388421531,8.54,208.03,208.0,0.69]
[1760388421742,8.54,208.02,208.01,0.69]
[1760388422944,8.54,208.02,207.99,80.0]
[1760388423332,8.54,208.01,208.0,0.69]
[1760388425356,8.54,208.01,207.99,80.69]
[1760388425932,0.62,208.0,207.99,80.0]
[1760388426139,2.15909243,208.0,207.99,0.2]
[1760388426643,19.19193736,208.0,207.99,0.2]
[1760388427236,23.99962966,208.0,207.99,0.2]
[1760388427736,17.84325994,208.0,207.99,0.2]
[1760388428151,23.99962966,208.0,207.99,0.2]
[1760388428456,24.14179123,208.0,207.99,0.2]
[1760388428636,20.8,207.98,207.97,0.2]
[1760388428842,10.221254,207.98,207.97,0.2]
[1760388429152,42.51772921,207.98,207.97,0.2]
[1760388429458,26.52588384,207.98,207.97,0.2]
[1760388433628,0.14216157,207.93,207.92,0.2]
[1760388433836,21.71772921,207.93,207.92,0.2]
[1760388434230,21.71772921,207.93,207.89,0.2]
[1760388434231,22.33909243,207.9,207.89,0.2]
[1760388434436,30.87909243,207.9,207.89,0.2]
[1760388434650,1.53909243,207.9,207.89,0.2]
[1760388434846,10.07909243,207.9,207.89,0.2]
[1760388435056,8.54,207.9,207.89,0.91]
[1760388435361,10.07909243,207.9,207.89,0.91]
[1760388435736,14.88909724,207.9,207.89,0.91]
[1760388435938,35.68909724,207.9,207.89,0.91]
[1760388436941,0.62,207.98,207.89,0.91]
[1760388437159,1.53909243,207.94,207.9,0.71]
[1760388437337,22.33909243,207.94,207.9,0.71]
[1760388437540,8.54,207.93,207.9,0.71]
[1760388437738,1.53909243,207.92,207.89,0.2]
[1760388437941,1.53909243,207.91,207.89,0.91]
[1760388438239,10.07909243,207.9,207.89,0.91]
[1760388438549,22.33909243,207.9,207.89,0.91]
[1760388438750,30.87909243,207.9,207.89,0.91]
[1760388439148,36.30909724,207.9,207.89,0.2]
[1760388439339,37.17881467,207.9,207.89,0.2]
[1760388439741,28.63881467,207.9,207.89,0.2]
[1760388439968,37.17881467,207.9,207.89,0.2]
[1760388440349,36.55881467,207.9,207.89,0.2]
[1760388440859,25.61000481,207.9,207.89,0.2]
[1760388441059,36.55881467,207.9,207.89,0.91]
[1760388441256,36.55881467,207.9,207.89,0.2]
[1760388443670,20.8,207.9,207.89,0.2]
[1760388443849,31.74880986,207.9,207.89,0.2]
[1760388444342,31.74880986,207.9,207.89,0.91]
[1760388444548,31.74880986,207.9,207.89,0.2]
[1760388445153,23.20880986,207.9,207.89,0.2]
[1760388445355,36.55881467,207.9,207.89,0.2]
[1760388445550,2.40880986,207.93,207.89,0.91]
[1760388445754,2.40880986,207.94,207.9,0.71]
[1760388445963,20.8,207.91,207.9,0.71]
[1760388446163,29.34,207.91,207.9,0.71]
[1760388446382,20.8,207.91,207.9,0.71]
[1760388446576,29.34,207.91,207.9,0.71]
[1760388448571,29.34,207.91,207.89,0.2]
[1760388448768,23.20880986,207.91,207.89,0.2]
[1760388448947,8.54,207.9,207.89,0.2]
[1760388449153,8.54,207.9,207.89,0.91]
[1760388449667,23.20880986,207.92,207.89,0.91]
[1760388449872,8.54,207.91,207.89,0.91]
[1760388450070,8.54,207.9,207.89,0.91]
[1760388451178,7.21858519,207.91,207.89,0.91]
[1760388451356,8.54,207.9,207.89,0.91]
[1760388451673,23.20880986,207.95,207.9,0.71]
[1760388451882,8.54,207.94,207.9,0.71]
[1760388452055,20.8,207.95,207.9,3.11880986]
[1760388452258,8.54,207.94,207.91,0.71]
[1760388452458,8.54,207.93,207.92,0.71]
[1760388452658,8.54,207.93,207.89,87.21900989]
[1760388453378,8.54,207.93,207.9,0.71]
[1760388454164,8.54,207.93,207.89,84.81020003]
[1760388454368,8.54,207.93,207.91,0.71]
[1760388454567,10.94880986,207.93,207.91,0.71]
[1760388454875,10.94880986,207.93,207.91,80.51]
[1760388455276,8.54,207.93,207.92,0.71]
[1760388457384,13.34938506,207.93,207.91,79.8]
[1760388457572,8.54,207.92,207.91,80.51]
[1760388458387,4.80938506,207.93,207.91,80.51]
[1760388458580,8.54,207.92,207.91,80.51]
[1760388458787,2.40880986,207.96,207.91,80.51]
[1760388459082,8.54,207.95,207.92,0.71]
[1760388459301,8.54,207.94,207.92,0.71]
[1760388459470,8.54,207.93,207.92,85.31947362]
[1760388460493,8.54,207.94,207.92,85.31947362]
[1760388460698,8.54,207.94,207.93,0.71]
[1760388463689,8.54,207.94,207.93,80.51]
[1760388465188,8.54,207.94,207.93,85.31931082]
[1760388466385,8.54,207.94,207.93,87.72812068]
[1760388467185,8.54,207.94,207.93,85.31931082]
[1760388474106,10.87647521,208.02,207.93,85.31931082]
[1760388474107,12.01738444,208.04,207.93,87.72812068]
[1760388474307,21.82528507,208.03,207.97,2.40880986]
[1760388474475,10.94880986,208.03,207.98,0.71]
[1760388474675,15.75580885,208.03,207.99,0.71]
[1760388474883,8.54,208.03,208.0,0.71]
[1760388475084,8.54,208.02,208.01,0.71]
[1760388477195,8.54,208.02,207.98,7.92694144]
[1760388477378,8.54,208.02,207.96,5.51852945]
[1760388477379,2.40880986,208.0,207.96,5.51852945]
[1760388477687,2.40880986,207.97,207.94,4.80892939]
[1760388477892,2.40880986,207.97,207.91,3.11880986]
[1760388477893,8.54,207.96,207.91,3.11880986]
[1760388478198,2.40880986,207.98,207.92,5.51936417]
[1760388478398,8.54,207.97,207.93,0.71]
[1760388478594,8.54,207.96,207.93,0.71]
[1760388479301,8.54,207.96,207.93,5.51915045]
[1760388480998,8.54,207.96,207.93,4.80915045]
[1760388481519,20.8,208.01,207.94,3.11880986]
[1760388481696,4.80699899,208.03,207.97,2.40880986]
[1760388481891,8.54,208.02,207.98,0.71]
[1760388482089,8.54,208.02,207.99,0.71]
[1760388483504,29.34,208.02,207.99,0.71]
[1760388484215,53.46793062,208.1,207.99,4.80791746]
[1760388484420,2.40880986,208.07,208.01,2.40880986]
[1760388484703,8.54,208.06,208.02,0.71]
[1760388484909,13.34632288,208.06,208.03,0.71]
[1760388485110,34.14632288,208.06,208.03,0.71]
[1760388485687,29.34,208.06,208.03,0.71]
[1760388485887,29.34,208.06,208.02,2.40880986]
[1760388486111,29.34,208.06,208.03,0.71]
[1760388486313,20.8,208.06,208.03,0.71]
[1760388486511,8.54,208.05,208.03,0.71]
[1760388486715,14.42284224,208.09,208.01,84.60742722]
[1760388486716,0.62,208.12,208.04,3.11880986]
[1760388486891,8.54,208.09,208.04,7.92536102]
[1760388487208,8.54,208.09,208.05,0.71]
[1760388487599,8.54,208.1,208.06,0.71]
[1760388487801,0.62,208.09,208.03,7.92577636]
[1760388488014,0.62,208.09,208.03,5.5169665]
[1760388488015,8.54,208.08,208.03,5.5169665]
[1760388488197,9.16,208.08,208.03,5.5169665]
[1760388488512,0.62,208.07,208.01,4.80734688]
[1760388488704,2.40880986,208.04,207.99,5.51792268]
[1760388489014,8.54,208.03,207.99,5.51792268]
[1760388489717,2.40880986,208.04,207.99,5.51792268]
[1760388489908,8.54,208.03,207.99,5.51792268]
[1760388490410,8.54,208.03,208.0,0.71]
[1760388490616,8.54,208.03,208.01,0.71]
[1760388491212,8.54,208.03,207.99,0.71]
[1760388491406,8.54,208.03,208.0,0.71]
[1760388491607,2.40880986,208.01,207.96,0.71]
[1760388491809,2.40880986,207.97,207.93,0.71]
[1760388492007,9.16,208.0,207.93,0.71]
[1760388492008,10.94880986,207.96,207.93,0.71]
[1760388492191,8.54,207.95,207.93,0.71]
[1760388492394,8.54,207.94,207.93,0.71]
[1760388493601,8.54,207.94,207.92,4.80950166]
[1760388494796,8.54,207.94,207.91,4.80977345]
[1760388494992,8.54,207.94,207.91,5.50977345]
[1760388495520,8.54,207.94,207.92,0.7]
[1760388496023,8.54,207.94,207.92,5.50946504]
[1760388496526,8.54,207.94,207.92,4.80946504]
[1760388497505,8.54,207.94,207.92,0.7]
[1760388499624,8.54,207.94,207.92,5.50936832]
[1760388501319,8.54,207.97,207.93,2.24030856]
[1760388501625,10.08030856,207.97,207.94,0.7]
[1760388502103,10.08030856,207.97,207.94,80.5]
[1760388502605,0.62,208.03,207.95,0.7]
[1760388502806,1.54030856,208.01,207.95,80.5]
[1760388503126,1.54030856,207.97,207.95,79.8]
[1760388503328,8.54,207.96,207.95,79.8]
[1760388504203,8.54,207.96,207.95,0.7]
[1760388505215,8.54,207.98,207.95,0.7]
[1760388505526,8.54,207.98,207.95,80.5]
[1760388505728,8.54,207.99,207.96,0.7]
[1760388505905,8.54,207.99,207.97,0.7]
[1760388506113,8.54,207.99,207.98,4.80815463]
[1760388508236,8.54,207.99,207.98,0.7]
[1760388509518,1.54030856,208.02,207.98,5.50804254]
[1760388509708,8.54,208.01,207.98,4.80804254]
[1760388510024,8.54,208.01,207.99,0.7]
[1760388510542,6.34709023,208.04,207.99,0.7]
[1760388510736,8.54,208.02,207.99,0.7]
[1760388511239,10.08030856,208.02,207.99,4.80790435]
[1760388511544,10.08030856,208.02,207.98,4.80814947]
[1760388511931,10.08030856,208.02,207.98,5.50814947]
[1760388514052,10.08030856,208.02,207.98,85.30814947]
[1760388515148,10.08030856,208.02,207.99,0.7]
[1760388515646,8.54,208.02,207.99,5.50789013]
[1760388515844,10.08030856,208.02,207.99,5.50789013]
[1760388519954,10.08030856,208.02,207.99,85.30789013]
[1760388520550,8.54,208.02,207.99,85.30789013]
[1760388521754,8.54,208.02,207.99,5.50789013]
[1760388524342,10.08030856,208.02,207.97,79.8]
[1760388524550,1.54030856,207.98,207.97,79.8]
[1760388524751,10.08030856,207.98,207.97,79.8]
[1760388525135,8.54,207.98,207.97,79.8]
[1760388525830,10.08030856,207.98,207.94,4.80907909]
[1760388526128,10.08030856,207.98,207.94,5.49907909]
[1760388527146,10.08030856,207.98,207.94,4.80907909]
[1760388527343,10.08030856,207.98,207.94,5.49907909]
[1760388527548,10.08030856,207.98,207.95,0.69]
[1760388527757,1.54030856,207.96,207.92,80.49]
[1760388527932,1.54030856,207.94,207.9,5.49996291]
[1760388528139,8.54,207.93,207.91,0.69]
[1760388532256,8.54,207.93,207.92,0.69]
[1760388532435,20.8,207.97,207.92,0.69]
[1760388532636,10.08030856,207.96,207.92,0.69]
[1760388533253,10.08030856,207.96,207.92,5.49950695]
[1760388533565,10.08030856,207.96,207.93,0.69]
[1760388536057,1.54030856,207.95,207.91,4.80973993]
[1760388536248,8.54,207.94,207.92,0.69]
[1760388537077,8.54,207.94,207.9,4.81000481]
[1760388537252,8.54,207.94,207.92,0.69]
[1760388537852,8.54,207.94,207.93,0.69]
[1760388538266,8.54,207.94,207.92,79.8]
[1760388538661,8.54,207.94,207.92,80.49]
[1760388539480,8.54,207.94,207.93,0.69]
[1760388540288,1.54030856,207.96,207.92,85.29948152]
[1760388540489,8.54,207.94,207.92,84.60948152]
[1760388540782,8.54,207.94,207.93,5.49931082]
[1760388541577,8.54,207.94,207.93,0.69]
[1760388543359,8.54,207.94,207.92,85.299517]
[1760388543884,8.54,207.94,207.92,84.609517]
[1760388544054,8.54,207.94,207.92,85.299517]
[1760388545273,8.54,207.94,207.92,84.609517]
[1760388545482,8.54,207.94,207.93,5.49931082]
[1760388547464,8.54,207.97,207.93,7.03961938]
[1760388547667,8.54,207.97,207.93,0.69]
[1760388547898,2.16030856,207.96,207.92,84.60951441]
[1760388548062,10.70030856,207.95,207.92,84.60951441]
[1760388548371,8.54,207.94,207.93,0.69]
[1760388549701,8.54,207.94,207.93,80.49]
[1760388550193,1.54030856,207.97,207.93,80.49]
[1760388550396,8.54,207.96,207.93,85.29930754]
[1760388550693,20.8,207.99,207.94,0.69]
[1760388550894,20.8,207.99,207.94,2.23030856]
[1760388551099,20.8,207.99,207.95,0.69]
[1760388551297,8.52,207.98,207.95,0.69]
[1760388551469,5.42676792,208.04,207.97,1.54030856]
[1760388551784,10.06030856,208.03,207.98,0.69]
[1760388551991,6.3468724,208.05,207.99,0.69]
[1760388552187,8.52,208.04,207.99,0.69]
[1760388552498,8.52,208.03,208.0,0.67]
[1760388552887,4.80619083,208.07,208.01,2.21030856]
[1760388553191,20.8,208.05,208.02,0.67]
[1760388553392,8.52,208.05,208.02,0.67]
[1760388553590,14.86685193,208.05,207.99,5.47792345]
[1760388553771,2.16030856,208.04,207.99,5.47792345]
[1760388553970,8.52,208.03,207.99,5.47792345]
[1760388554188,8.52,208.03,207.99,7.01823201]
[1760388554390,8.52,208.03,208.0,0.67]
[1760388555803,8.52,208.03,208.0,5.47763087]
[1760388556689,8.52,208.03,208.01,0.67]
[1760388557809,8.52,208.03,207.99,4.80790546]
[1760388557984,9.14,208.03,207.98,1.54030856]
[1760388558190,9.14,208.03,207.98,2.21030856]
[1760388558384,8.52,208.03,207.99,0.67]
[1760388558590,10.68030856,208.03,207.99,80.47]
[1760388558995,10.06030856,208.03,207.99,79.8]
[1760388559305,9.14,208.03,207.99,79.8]
[1760388559496,8.52,208.03,207.99,84.60789023]
[1760388559699,8.52,208.03,207.99,85.27789023]
[1760388560103,8.52,208.03,208.0,0.67]
[1760388560491,8.52,208.03,207.99,87.01293227]
[1760388560795,8.52,208.03,208.0,3.07504204]
[1760388560996,8.52,208.03,208.01,0.67]
[1760388561912,8.52,208.03,208.01,5.47744493]
[1760388562118,8.52,208.03,208.02,0.67]
[1760388562413,8.52,208.03,208.01,4.80744493]
[1760388562711,8.52,208.04,208.02,0.67]
[1760388564515,8.52,208.04,208.02,80.47]
[1760388565114,8.52,208.04,208.02,79.8]
[1760388565313,8.52,208.04,208.02,80.47]
[1760388566715,10.92504204,208.04,207.95,12.02169075]
[1760388567018,2.40504204,208.02,207.97,0.67]
[1760388567222,11.54504204,208.01,207.97,0.67]
[1760388567393,2.40504204,207.99,207.95,5.47884828]
[1760388567598,8.52,207.98,207.95,5.47884828]
[1760388568407,8.52,207.98,207.96,0.67]
[1760388568909,8.52,207.98,207.97,0.67]
[1760388569914,4.80704065,208.03,207.97,3.07504204]
[1760388570117,2.40504204,208.01,207.96,0.67]
[1760388570299,8.52,208.0,207.96,5.47847878]
[1760388570702,10.92504204,208.0,207.96,5.47847878]
[1760388572614,8.52,208.0,207.96,5.47847878]
[1760388573523,8.52,208.0,207.96,0.67]
[1760388573696,8.52,208.0,207.9,79.8]
[1760388573697,23.20504204,207.97,207.9,79.8]
[1760388573897,2.40504204,207.91,207.89,0.2]
[1760388574198,8.52,207.9,207.89,0.2]
[1760388578522,8.52,207.9,207.89,0.87]
[1760388578831,8.52,207.96,207.89,8.08526419]
[1760388579122,8.52,207.96,207.91,2.40504204]
[1760388579319,8.52,207.96,207.92,0.67]
[1760388579518,8.52,207.96,207.92,80.47]
[1760388579725,2.40504204,208.02,207.95,2.40504204]
[1760388579907,8.52,208.01,207.96,3.07504204]
[1760388580108,8.52,208.01,207.97,3.07504204]
[1760388580319,8.52,208.01,207.98,0.67]
[1760388582320,8.52,208.01,207.97,2.40504204]
[1760388582510,13.94749224,208.01,207.96,7.91351198]
[1760388582821,8.52,208.01,207.97,3.10504204]
[1760388583029,8.52,208.01,207.98,0.7]
[1760388584822,8.52,208.02,207.99,0.7]
[1760388585030,8.52,208.02,207.99,3.10504204]
[1760388585224,8.52,208.02,207.99,82.90504204]
[1760388585610,8.52,208.02,207.99,80.5]
[1760388585804,8.52,208.02,207.98,84.60807897]